{"text_format":"1","workbook":"xlsx","n_sheets":31,"sheets":["Classe","El_1","EL_2","EL_3","EL_4","EL_5","EL_6","EL_7","EL_8","EL_9","EL_10","EL_11","EL_12","EL_13","EL_14","EL_15","EL_16","EL_17","EL_18","EL_19","EL_20","EL_21","EL_22","EL_23","EL_24","EL_25","EL_26","EL_27","EL_28","EL_29","EL_30"],"not_rendered":{"charts":0,"images":1,"macros":1,"external_links":0,"defined_names":31,"comments":0,"pivot_tables":0},"unopened":[],"bounds":{"document_bytes":16777216,"sheet_cells":100000,"rows_first":2000,"rows_last":500,"rows_between":2000,"halvings":0,"cell_chars":16384,"cell_head_chars":4096},"cells_cut":0,"cells_raw":0,"read":"whole","date_system":"1900"}

{"sheet":"Classe","index":0,"n_rows":46,"n_cols":11,"rows_kept":46,"cut":false,"hidden":false,"merged":[[2,10,2,11],[2,0,5,3],[7,0,8,2],[45,0,45,8],[0,0,0,8],[43,0,43,2],[40,0,40,2],[41,0,41,2],[44,0,44,2],[42,0,42,2],[6,0,6,2],[6,3,6,4],[6,5,6,8],[4,5,4,8],[1,5,1,8],[2,5,2,8],[3,5,3,8],[5,5,5,8],[1,0,1,3]]}
["EPREUVES PROFESSIONNELLES BAC PRO ASSP-A"]
["Établissement de formation",null,null,null,"Session :",2014]
["(Nom et adresse)",null,null,null,"Diplôme : ","Baccalauréat Professionnel",null,null,null,null,"Saisie des informations générales"]
[null,null,null,null,"Spécialité : ","Accompagnement, soins et services à la personne",null,null,null,null,"Nom chef établ : "]
[null,null,null,null,"Option :","A : \"A domicile\"",null,null,null,null,"Lieu création fiches : "]
[null,null,null,null,"Classe : ",null,null,null,null,null,"Date création fiches : "]
["Epreuves\nProfessionnelles",null,null,"E1\nEpreuve scientifique et technique",null,"E3\nEpreuve professionnelle"]
["ELEVE\n ",null,null,"E13\nConduite d'un projet d'accompagnement","Total\nE1","E31\nAccompagnement des actes de la vie quotidienne\nà domicile","E 32\nOrganisation d'interventions\nà domicile","E33\nAménagement et équipement de l'espace privé","Total\nE3"]
[null,null,null,"/ 80"," / 20","/ 80","/ 40","/ 40","/ 20"]
["N°","Nom","Prénom","A","B","C","D","E","C+D+E"]
[1,null,null,null,{"$f":"IF(ISBLANK(B11),\"\",D11/4)","v":""},null,null,null,{"$f":"IF(ISBLANK(B11),\"\",SUM(F11:H11)/8)","v":""}]
[2,null,null,null,{"$f":"IF(ISBLANK(B12),\"\",D12/4)","v":""},null,null,null,{"$f":"IF(ISBLANK(B12),\"\",SUM(F12:H12)/8)","v":""}]
[3,null,null,null,"",null,null,null,""]
[4,null,null,null,"",null,null,null,""]
[5,null,null,null,"",null,null,null,""]
[6,null,null,null,"",null,null,null,""]
[7,null,null,null,"",null,null,null,""]
[8,null,null,null,"",null,null,null,""]
[9,null,null,null,"",null,null,null,""]
[10,null,null,null,"",null,null,null,""]
[11,null,null,null,"",null,null,null,""]
[12,null,null,null,"",null,null,null,""]
[13,null,null,null,"",null,null,null,""]
[14,null,null,null,"",null,null,null,""]
[15,null,null,null,"",null,null,null,""]
[16,null,null,null,"",null,null,null,""]
[17,null,null,null,"",null,null,null,""]
[18,null,null,null,"",null,null,null,""]
[19,null,null,null,"",null,null,null,""]
[20,null,null,null,"",null,null,null,""]
[21,null,null,null,"",null,null,null,""]
[22,null,null,null,"",null,null,null,""]
[23,null,null,null,"",null,null,null,""]
[24,null,null,null,"",null,null,null,""]
[25,null,null,null,"",null,null,null,""]
[26,null,null,null,"",null,null,null,""]
[27,null,null,null,"",null,null,null,""]
[28,null,null,null,"",null,null,null,""]
[29,null,null,null,"",null,null,null,""]
[30,null,null,null,"",null,null,null,""]
["Note la plus haute",null,null,{"$f":"IF(ISBLANK(D11),\"\",MAX(D11:D40))","v":""},{"$f":"IF(ISNUMBER(E11),MAX(E11:E40),\"\")","v":""},{"$f":"IF(ISBLANK(F11),\"\",MAX(F11:F40))","v":""},{"$f":"IF(ISBLANK(G11),\"\",MAX(G11:G40))","v":""},{"$f":"IF(ISBLANK(H11),\"\",MAX(H11:H40))","v":""},{"$f":"IF(ISNUMBER(I11),MAX(I11:I40),\"\")","v":""}]
["Note la plus basse ",null,null,{"$f":"IF(ISBLANK(D11),\"\",MIN(D11:D40))","v":""},{"$f":"IF(ISNUMBER(E11),MIN(E11:E40),\"\")","v":""},{"$f":"IF(ISBLANK(F11),\"\",MIN(F11:F40))","v":""},{"$f":"IF(ISBLANK(G11),\"\",MIN(G11:G40))","v":""},{"$f":"IF(ISBLANK(H11),\"\",MIN(H11:H40))","v":""},{"$f":"IF(ISNUMBER(I11),MIN(I11:I40),\"\")","v":""}]
["Moyenne",null,null,{"$f":"IF(ISBLANK(D11),\"\",AVERAGE(D11:D40))","v":""},{"$f":"IF(ISNUMBER(E11),AVERAGE(E11:E40),\"\")","v":""},{"$f":"IF(ISBLANK(F11),\"\",AVERAGE(F11:F40))","v":""},{"$f":"IF(ISBLANK(G11),\"\",AVERAGE(G11:G40))","v":""},{"$f":"IF(ISBLANK(H11),\"\",AVERAGE(H11:H40))","v":""},{"$f":"IF(ISNUMBER(I11),AVERAGE(I11:I40),\"\")","v":""}]
["Noms des professeurs"]
["Signatures"]
["Document à retourner à l'IEN avant le 10 juin de chaque année"]

{"sheet":"El_1","index":1,"n_rows":31,"n_cols":6,"rows_kept":31,"cut":false,"hidden":false,"merged":[[8,0,10,0],[28,0,28,5],[30,0,30,5],[0,3,0,5],[1,3,1,5],[2,3,2,5],[3,0,3,5],[4,2,4,5],[6,2,6,3],[5,0,5,5],[0,0,2,0],[6,4,6,5],[6,0,6,1],[0,1,2,1]]}
[null,{"$f":"Classe!A3","v":"(Nom et adresse)"},"Nom :",{"$f":"IF(ISBLANK(Classe!B11),\"\",Classe!B11)","v":""}]
[null,null,"Prénom :",{"$f":"IF(ISBLANK(Classe!C11),\"\",Classe!C11)","v":""}]
[null,null,"Session :",{"$f":"Classe!F2","v":2014}]
[]
["BAC PRO\n ASSP\nOption A\n\"A domicile\"","Fiche individuelle récapitulative\ndes notes obtenues\naux évaluations en CCF\ndans le domaine professionnel"]
[]
[null,null,"Note obtenue (coefficientée)",null,"Note proposée\nau jury (*)"]
["E1\nEpreuve\nscientifique\net technique","Sous épreuve E 13\nConduite d'un projet d'accompagnement",{"$f":"Classe!D11","v":0},"/ 80",{"$f":"IF(ISERR(C8/4),\"\",CEILING(C8/4,0.5))","v":0},"/ 20"]
["E 3\nEpreuve professionnelle","Sous épreuve E 31\nAccompagnement des actes de la vie quotidienne\nà domicile",{"$f":"Classe!F11","v":0},"/ 80",{"$f":"IF(ISERR(C9/4),\"\",CEILING(C9/4,0.5))","v":0},"/ 20"]
[null,"Sous épreuve E 32\nOrganisation d'interventions\nà domicile",{"$f":"Classe!G11","v":0},"/ 40",{"$f":"IF(ISERR(C10/2),\"\",CEILING(C10/2,0.5))","v":0},"/ 20"]
[null,"Sous épreuve E 33\nAménagement et équipement\nde l'espace privé",{"$f":"Classe!H11","v":0},"/ 40",{"$f":"IF(ISERR(C11/2),\"\",CEILING(C11/2,0.5))","v":0},"/ 20"]
[]
[]
[]
["Cachet de l'établissement",null,{"$f":"\"A \"&Classe!L5","v":"A "}]
[null,null,{"$f":"IF(ISBLANK(Classe!L6),\"Le \",Classe!L6)","v":"Le "}]
[]
[null,null,"Nom et signature du chef d'établissement"]
[]
[]
[]
[]
[]
[]
[]
[null,null,{"$f":"IF(ISBLANK(Classe!L6),\"\",Classe!L6)","v":""}]
[]
[]
["(*)La note proposée est arrondie au demi-point supérieur, elle figurera donc en points entiers ou en ½ points"]
[]
["Remarque : Les notes des évaluations par CCF ne sont jamais communiquées aux candidats ni prises en compte dans les moyennes trimestrielles. Elles sont proposées au jury."]

{"sheet":"EL_2","index":2,"n_rows":31,"n_cols":6,"rows_kept":31,"cut":false,"hidden":false,"merged":[[28,0,28,5],[30,0,30,5],[4,2,4,5],[5,0,5,5],[6,0,6,1],[6,2,6,3],[6,4,6,5],[8,0,10,0],[3,0,3,5],[0,0,2,0],[0,1,2,1],[0,3,0,5],[1,3,1,5],[2,3,2,5]]}
[null,{"$f":"Classe!A3","v":"(Nom et adresse)"},"Nom :",{"$f":"IF(ISBLANK(Classe!B12),\"\",Classe!B12)","v":""}]
[null,null,"Prénom :",{"$f":"IF(ISBLANK(Classe!C12),\"\",Classe!C12)","v":""}]
[null,null,"Session :",{"$f":"Classe!F2","v":2014}]
[]
["BAC PRO\n ASSP\nOption A\n\"A domicile\"","Fiche individuelle récapitulative\ndes notes obtenues\naux évaluations en CCF\ndans le domaine professionnel"]
[]
[null,null,"Note obtenue (coefficientée)",null,"Note proposée\nau jury (*)"]
["E1\nEpreuve\nscientifique\net technique","Sous épreuve E 13\nConduite d'un projet d'accompagnement",{"$f":"Classe!D12","v":0},"/ 80",{"$f":"IF(ISERR(C8/4),\"\",CEILING(C8/4,0.5))","v":0},"/ 20"]
["E 3\nEpreuve professionnelle","Sous épreuve E 31\nAccompagnement des actes de la vie quotidienne\nà domicile",{"$f":"Classe!F12","v":0},"/ 80",{"$f":"IF(ISERR(C9/4),\"\",CEILING(C9/4,0.5))","v":0},"/ 20"]
[null,"Sous épreuve E 32\nOrganisation d'interventions\nà domicile",{"$f":"Classe!G12","v":0},"/ 40",{"$f":"IF(ISERR(C10/2),\"\",CEILING(C10/2,0.5))","v":0},"/ 20"]
[null,"Sous épreuve E 33\nAménagement et équipement\nde l'espace privé",{"$f":"Classe!H12","v":0},"/ 40",{"$f":"IF(ISERR(C11/2),\"\",CEILING(C11/2,0.5))","v":0},"/ 20"]
[]
[]
[]
["Cachet de l'établissement",null,{"$f":"\"A \"&Classe!L5","v":"A "}]
[null,null,{"$f":"IF(ISBLANK(Classe!L6),\"Le \",Classe!L6)","v":"Le "}]
[]
[null,null,"Nom et signature du chef d'établissement"]
[]
[]
[]
[]
[]
[]
[]
[null,null,{"$f":"IF(ISBLANK(Classe!L6),\"\",Classe!L6)","v":""}]
[]
[]
["(*)La note proposée est arrondie au demi-point supérieur, elle figurera donc en points entiers ou en ½ points"]
[]
["Remarque : Les notes des évaluations par CCF ne sont jamais communiquées aux candidats ni prises en compte dans les moyennes trimestrielles. Elles sont proposées au jury."]

{"sheet":"EL_3","index":3,"n_rows":31,"n_cols":6,"rows_kept":31,"cut":false,"hidden":false,"merged":[[28,0,28,5],[30,0,30,5],[4,2,4,5],[5,0,5,5],[6,0,6,1],[6,2,6,3],[6,4,6,5],[8,0,10,0],[3,0,3,5],[0,0,2,0],[0,1,2,1],[0,3,0,5],[1,3,1,5],[2,3,2,5]]}
[null,{"$f":"Classe!A3","v":"(Nom et adresse)"},"Nom :",{"$f":"IF(ISBLANK(Classe!B13),\"\",Classe!B13)","v":""}]
[null,null,"Prénom :",{"$f":"IF(ISBLANK(Classe!C13),\"\",Classe!C13)","v":""}]
[null,null,"Session :",{"$f":"Classe!F2","v":2014}]
[]
["BAC PRO\n ASSP\nOption A\n\"A domicile\"","Fiche individuelle récapitulative\ndes notes obtenues\naux évaluations en CCF\ndans le domaine professionnel"]
[]
[null,null,"Note obtenue (coefficientée)",null,"Note proposée\nau jury (*)"]
["E1\nEpreuve\nscientifique\net technique","Sous épreuve E 13\nConduite d'un projet d'accompagnement",{"$f":"Classe!D13","v":0},"/ 80",{"$f":"IF(ISERR(C8/4),\"\",CEILING(C8/4,0.5))","v":0},"/ 20"]
["E 3\nEpreuve professionnelle","Sous épreuve E 31\nAccompagnement des actes de la vie quotidienne\nà domicile",{"$f":"Classe!F13","v":0},"/ 80",{"$f":"IF(ISERR(C9/4),\"\",CEILING(C9/4,0.5))","v":0},"/ 20"]
[null,"Sous épreuve E 32\nOrganisation d'interventions\nà domicile",{"$f":"Classe!G13","v":0},"/ 40",{"$f":"IF(ISERR(C10/2),\"\",CEILING(C10/2,0.5))","v":0},"/ 20"]
[null,"Sous épreuve E 33\nAménagement et équipement\nde l'espace privé",{"$f":"Classe!H13","v":0},"/ 40",{"$f":"IF(ISERR(C11/2),\"\",CEILING(C11/2,0.5))","v":0},"/ 20"]
[]
[]
[]
["Cachet de l'établissement",null,{"$f":"\"A \"&Classe!L5","v":"A "}]
[null,null,{"$f":"IF(ISBLANK(Classe!L6),\"Le \",Classe!L6)","v":"Le "}]
[]
[null,null,"Nom et signature du chef d'établissement"]
[]
[]
[]
[]
[]
[]
[]
[null,null,{"$f":"IF(ISBLANK(Classe!L6),\"\",Classe!L6)","v":""}]
[]
[]
["(*)La note proposée est arrondie au demi-point supérieur, elle figurera donc en points entiers ou en ½ points"]
[]
["Remarque : Les notes des évaluations par CCF ne sont jamais communiquées aux candidats ni prises en compte dans les moyennes trimestrielles. Elles sont proposées au jury."]

{"sheet":"EL_4","index":4,"n_rows":31,"n_cols":6,"rows_kept":31,"cut":false,"hidden":false,"merged":[[28,0,28,5],[30,0,30,5],[4,2,4,5],[5,0,5,5],[6,0,6,1],[6,2,6,3],[6,4,6,5],[8,0,10,0],[3,0,3,5],[0,0,2,0],[0,1,2,1],[0,3,0,5],[1,3,1,5],[2,3,2,5]]}
[null,{"$f":"Classe!A3","v":"(Nom et adresse)"},"Nom :",{"$f":"IF(ISBLANK(Classe!B14),\"\",Classe!B14)","v":""}]
[null,null,"Prénom :",{"$f":"IF(ISBLANK(Classe!C14),\"\",Classe!C14)","v":""}]
[null,null,"Session :",{"$f":"Classe!F2","v":2014}]
[]
["BAC PRO\n ASSP\nOption A\n\"A domicile\"","Fiche individuelle récapitulative\ndes notes obtenues\naux évaluations en CCF\ndans le domaine professionnel"]
[]
[null,null,"Note obtenue (coefficientée)",null,"Note proposée\nau jury (*)"]
["E1\nEpreuve\nscientifique\net technique","Sous épreuve E 13\nConduite d'un projet d'accompagnement",{"$f":"Classe!D14","v":0},"/ 80",{"$f":"IF(ISERR(C8/4),\"\",CEILING(C8/4,0.5))","v":0},"/ 20"]
["E 3\nEpreuve professionnelle","Sous épreuve E 31\nAccompagnement des actes de la vie quotidienne\nà domicile",{"$f":"Classe!F14","v":0},"/ 80",{"$f":"IF(ISERR(C9/4),\"\",CEILING(C9/4,0.5))","v":0},"/ 20"]
[null,"Sous épreuve E 32\nOrganisation d'interventions\nà domicile",{"$f":"Classe!G14","v":0},"/ 40",{"$f":"IF(ISERR(C10/2),\"\",CEILING(C10/2,0.5))","v":0},"/ 20"]
[null,"Sous épreuve E 33\nAménagement et équipement\nde l'espace privé",{"$f":"Classe!H14","v":0},"/ 40",{"$f":"IF(ISERR(C11/2),\"\",CEILING(C11/2,0.5))","v":0},"/ 20"]
[]
[]
[]
["Cachet de l'établissement",null,{"$f":"\"A \"&Classe!L5","v":"A "}]
[null,null,{"$f":"IF(ISBLANK(Classe!L6),\"Le \",Classe!L6)","v":"Le "}]
[]
[null,null,"Nom et signature du chef d'établissement"]
[]
[]
[]
[]
[]
[]
[]
[null,null,{"$f":"IF(ISBLANK(Classe!L6),\"\",Classe!L6)","v":""}]
[]
[]
["(*)La note proposée est arrondie au demi-point supérieur, elle figurera donc en points entiers ou en ½ points"]
[]
["Remarque : Les notes des évaluations par CCF ne sont jamais communiquées aux candidats ni prises en compte dans les moyennes trimestrielles. Elles sont proposées au jury."]

{"sheet":"EL_5","index":5,"n_rows":31,"n_cols":6,"rows_kept":31,"cut":false,"hidden":false,"merged":[[28,0,28,5],[30,0,30,5],[4,2,4,5],[5,0,5,5],[6,0,6,1],[6,2,6,3],[6,4,6,5],[8,0,10,0],[3,0,3,5],[0,0,2,0],[0,1,2,1],[0,3,0,5],[1,3,1,5],[2,3,2,5]]}
[null,{"$f":"Classe!A3","v":"(Nom et adresse)"},"Nom :",{"$f":"IF(ISBLANK(Classe!B15),\"\",Classe!B15)","v":""}]
[null,null,"Prénom :",{"$f":"IF(ISBLANK(Classe!C15),\"\",Classe!C15)","v":""}]
[null,null,"Session :",{"$f":"Classe!F2","v":2014}]
[]
["BAC PRO\n ASSP\nOption A\n\"A domicile\"","Fiche individuelle récapitulative\ndes notes obtenues\naux évaluations en CCF\ndans le domaine professionnel"]
[]
[null,null,"Note obtenue (coefficientée)",null,"Note proposée\nau jury (*)"]
["E1\nEpreuve\nscientifique\net technique","Sous épreuve E 13\nConduite d'un projet d'accompagnement",{"$f":"Classe!D15","v":0},"/ 80",{"$f":"IF(ISERR(C8/4),\"\",CEILING(C8/4,0.5))","v":0},"/ 20"]
["E 3\nEpreuve professionnelle","Sous épreuve E 31\nAccompagnement des actes de la vie quotidienne\nà domicile",{"$f":"Classe!F15","v":0},"/ 80",{"$f":"IF(ISERR(C9/4),\"\",CEILING(C9/4,0.5))","v":0},"/ 20"]
[null,"Sous épreuve E 32\nOrganisation d'interventions\nà domicile",{"$f":"Classe!G15","v":0},"/ 40",{"$f":"IF(ISERR(C10/2),\"\",CEILING(C10/2,0.5))","v":0},"/ 20"]
[null,"Sous épreuve E 33\nAménagement et équipement\nde l'espace privé",{"$f":"Classe!H15","v":0},"/ 40",{"$f":"IF(ISERR(C11/2),\"\",CEILING(C11/2,0.5))","v":0},"/ 20"]
[]
[]
[]
["Cachet de l'établissement",null,{"$f":"\"A \"&Classe!L5","v":"A "}]
[null,null,{"$f":"IF(ISBLANK(Classe!L6),\"Le \",Classe!L6)","v":"Le "}]
[]
[null,null,"Nom et signature du chef d'établissement"]
[]
[]
[]
[]
[]
[]
[]
[null,null,{"$f":"IF(ISBLANK(Classe!L6),\"\",Classe!L6)","v":""}]
[]
[]
["(*)La note proposée est arrondie au demi-point supérieur, elle figurera donc en points entiers ou en ½ points"]
[]
["Remarque : Les notes des évaluations par CCF ne sont jamais communiquées aux candidats ni prises en compte dans les moyennes trimestrielles. Elles sont proposées au jury."]

{"sheet":"EL_6","index":6,"n_rows":31,"n_cols":6,"rows_kept":31,"cut":false,"hidden":false,"merged":[[28,0,28,5],[30,0,30,5],[4,2,4,5],[5,0,5,5],[6,0,6,1],[6,2,6,3],[6,4,6,5],[8,0,10,0],[3,0,3,5],[0,0,2,0],[0,1,2,1],[0,3,0,5],[1,3,1,5],[2,3,2,5]]}
[null,{"$f":"Classe!A3","v":"(Nom et adresse)"},"Nom :",{"$f":"IF(ISBLANK(Classe!B16),\"\",Classe!B16)","v":""}]
[null,null,"Prénom :",{"$f":"IF(ISBLANK(Classe!C16),\"\",Classe!C16)","v":""}]
[null,null,"Session :",{"$f":"Classe!F2","v":2014}]
[]
["BAC PRO\n ASSP\nOption A\n\"A domicile\"","Fiche individuelle récapitulative\ndes notes obtenues\naux évaluations en CCF\ndans le domaine professionnel"]
[]
[null,null,"Note obtenue (coefficientée)",null,"Note proposée\nau jury (*)"]
["E1\nEpreuve\nscientifique\net technique","Sous épreuve E 13\nConduite d'un projet d'accompagnement",{"$f":"Classe!D16","v":0},"/ 80",{"$f":"IF(ISERR(C8/4),\"\",CEILING(C8/4,0.5))","v":0},"/ 20"]
["E 3\nEpreuve professionnelle","Sous épreuve E 31\nAccompagnement des actes de la vie quotidienne\nà domicile",{"$f":"Classe!F16","v":0},"/ 80",{"$f":"IF(ISERR(C9/4),\"\",CEILING(C9/4,0.5))","v":0},"/ 20"]
[null,"Sous épreuve E 32\nOrganisation d'interventions\nà domicile",{"$f":"Classe!G16","v":0},"/ 40",{"$f":"IF(ISERR(C10/2),\"\",CEILING(C10/2,0.5))","v":0},"/ 20"]
[null,"Sous épreuve E 33\nAménagement et équipement\nde l'espace privé",{"$f":"Classe!H16","v":0},"/ 40",{"$f":"IF(ISERR(C11/2),\"\",CEILING(C11/2,0.5))","v":0},"/ 20"]
[]
[]
[]
["Cachet de l'établissement",null,{"$f":"\"A \"&Classe!L5","v":"A "}]
[null,null,{"$f":"IF(ISBLANK(Classe!L6),\"Le \",Classe!L6)","v":"Le "}]
[]
[null,null,"Nom et signature du chef d'établissement"]
[]
[]
[]
[]
[]
[]
[]
[null,null,{"$f":"IF(ISBLANK(Classe!L6),\"\",Classe!L6)","v":""}]
[]
[]
["(*)La note proposée est arrondie au demi-point supérieur, elle figurera donc en points entiers ou en ½ points"]
[]
["Remarque : Les notes des évaluations par CCF ne sont jamais communiquées aux candidats ni prises en compte dans les moyennes trimestrielles. Elles sont proposées au jury."]

{"sheet":"EL_7","index":7,"n_rows":31,"n_cols":6,"rows_kept":31,"cut":false,"hidden":false,"merged":[[28,0,28,5],[30,0,30,5],[4,2,4,5],[5,0,5,5],[6,0,6,1],[6,2,6,3],[6,4,6,5],[8,0,10,0],[3,0,3,5],[0,0,2,0],[0,1,2,1],[0,3,0,5],[1,3,1,5],[2,3,2,5]]}
[null,{"$f":"Classe!A3","v":"(Nom et adresse)"},"Nom :",{"$f":"IF(ISBLANK(Classe!B17),\"\",Classe!B17)","v":""}]
[null,null,"Prénom :",{"$f":"IF(ISBLANK(Classe!C17),\"\",Classe!C17)","v":""}]
[null,null,"Session :",{"$f":"Classe!F2","v":2014}]
[]
["BAC PRO\n ASSP\nOption A\n\"A domicile\"","Fiche individuelle récapitulative\ndes notes obtenues\naux évaluations en CCF\ndans le domaine professionnel"]
[]
[null,null,"Note obtenue (coefficientée)",null,"Note proposée\nau jury (*)"]
["E1\nEpreuve\nscientifique\net technique","Sous épreuve E 13\nConduite d'un projet d'accompagnement",{"$f":"Classe!D17","v":0},"/ 80",{"$f":"IF(ISERR(C8/4),\"\",CEILING(C8/4,0.5))","v":0},"/ 20"]
["E 3\nEpreuve professionnelle","Sous épreuve E 31\nAccompagnement des actes de la vie quotidienne\nà domicile",{"$f":"Classe!F17","v":0},"/ 80",{"$f":"IF(ISERR(C9/4),\"\",CEILING(C9/4,0.5))","v":0},"/ 20"]
[null,"Sous épreuve E 32\nOrganisation d'interventions\nà domicile",{"$f":"Classe!G17","v":0},"/ 40",{"$f":"IF(ISERR(C10/2),\"\",CEILING(C10/2,0.5))","v":0},"/ 20"]
[null,"Sous épreuve E 33\nAménagement et équipement\nde l'espace privé",{"$f":"Classe!H17","v":0},"/ 40",{"$f":"IF(ISERR(C11/2),\"\",CEILING(C11/2,0.5))","v":0},"/ 20"]
[]
[]
[]
["Cachet de l'établissement",null,{"$f":"\"A \"&Classe!L5","v":"A "}]
[null,null,{"$f":"IF(ISBLANK(Classe!L6),\"Le \",Classe!L6)","v":"Le "}]
[]
[null,null,"Nom et signature du chef d'établissement"]
[]
[]
[]
[]
[]
[]
[]
[null,null,{"$f":"IF(ISBLANK(Classe!L6),\"\",Classe!L6)","v":""}]
[]
[]
["(*)La note proposée est arrondie au demi-point supérieur, elle figurera donc en points entiers ou en ½ points"]
[]
["Remarque : Les notes des évaluations par CCF ne sont jamais communiquées aux candidats ni prises en compte dans les moyennes trimestrielles. Elles sont proposées au jury."]

{"sheet":"EL_8","index":8,"n_rows":31,"n_cols":6,"rows_kept":31,"cut":false,"hidden":false,"merged":[[28,0,28,5],[30,0,30,5],[4,2,4,5],[5,0,5,5],[6,0,6,1],[6,2,6,3],[6,4,6,5],[8,0,10,0],[3,0,3,5],[0,0,2,0],[0,1,2,1],[0,3,0,5],[1,3,1,5],[2,3,2,5]]}
[null,{"$f":"Classe!A3","v":"(Nom et adresse)"},"Nom :",{"$f":"IF(ISBLANK(Classe!B18),\"\",Classe!B18)","v":""}]
[null,null,"Prénom :",{"$f":"IF(ISBLANK(Classe!C18),\"\",Classe!C18)","v":""}]
[null,null,"Session :",{"$f":"Classe!F2","v":2014}]
[]
["BAC PRO\n ASSP\nOption A\n\"A domicile\"","Fiche individuelle récapitulative\ndes notes obtenues\naux évaluations en CCF\ndans le domaine professionnel"]
[]
[null,null,"Note obtenue (coefficientée)",null,"Note proposée\nau jury (*)"]
["E1\nEpreuve\nscientifique\net technique","Sous épreuve E 13\nConduite d'un projet d'accompagnement",{"$f":"Classe!D18","v":0},"/ 80",{"$f":"IF(ISERR(C8/4),\"\",CEILING(C8/4,0.5))","v":0},"/ 20"]
["E 3\nEpreuve professionnelle","Sous épreuve E 31\nAccompagnement des actes de la vie quotidienne\nà domicile",{"$f":"Classe!F18","v":0},"/ 80",{"$f":"IF(ISERR(C9/4),\"\",CEILING(C9/4,0.5))","v":0},"/ 20"]
[null,"Sous épreuve E 32\nOrganisation d'interventions\nà domicile",{"$f":"Classe!G18","v":0},"/ 40",{"$f":"IF(ISERR(C10/2),\"\",CEILING(C10/2,0.5))","v":0},"/ 20"]
[null,"Sous épreuve E 33\nAménagement et équipement\nde l'espace privé",{"$f":"Classe!H18","v":0},"/ 40",{"$f":"IF(ISERR(C11/2),\"\",CEILING(C11/2,0.5))","v":0},"/ 20"]
[]
[]
[]
["Cachet de l'établissement",null,{"$f":"\"A \"&Classe!L5","v":"A "}]
[null,null,{"$f":"IF(ISBLANK(Classe!L6),\"Le \",Classe!L6)","v":"Le "}]
[]
[null,null,"Nom et signature du chef d'établissement"]
[]
[]
[]
[]
[]
[]
[]
[null,null,{"$f":"IF(ISBLANK(Classe!L6),\"\",Classe!L6)","v":""}]
[]
[]
["(*)La note proposée est arrondie au demi-point supérieur, elle figurera donc en points entiers ou en ½ points"]
[]
["Remarque : Les notes des évaluations par CCF ne sont jamais communiquées aux candidats ni prises en compte dans les moyennes trimestrielles. Elles sont proposées au jury."]

{"sheet":"EL_9","index":9,"n_rows":31,"n_cols":6,"rows_kept":31,"cut":false,"hidden":false,"merged":[[28,0,28,5],[30,0,30,5],[4,2,4,5],[5,0,5,5],[6,0,6,1],[6,2,6,3],[6,4,6,5],[8,0,10,0],[3,0,3,5],[0,0,2,0],[0,1,2,1],[0,3,0,5],[1,3,1,5],[2,3,2,5]]}
[null,{"$f":"Classe!A3","v":"(Nom et adresse)"},"Nom :",{"$f":"IF(ISBLANK(Classe!B19),\"\",Classe!B19)","v":""}]
[null,null,"Prénom :",{"$f":"IF(ISBLANK(Classe!C19),\"\",Classe!C19)","v":""}]
[null,null,"Session :",{"$f":"Classe!F2","v":2014}]
[]
["BAC PRO\n ASSP\nOption A\n\"A domicile\"","Fiche individuelle récapitulative\ndes notes obtenues\naux évaluations en CCF\ndans le domaine professionnel"]
[]
[null,null,"Note obtenue (coefficientée)",null,"Note proposée\nau jury (*)"]
["E1\nEpreuve\nscientifique\net technique","Sous épreuve E 13\nConduite d'un projet d'accompagnement",{"$f":"Classe!D19","v":0},"/ 80",{"$f":"IF(ISERR(C8/4),\"\",CEILING(C8/4,0.5))","v":0},"/ 20"]
["E 3\nEpreuve professionnelle","Sous épreuve E 31\nAccompagnement des actes de la vie quotidienne\nà domicile",{"$f":"Classe!F19","v":0},"/ 80",{"$f":"IF(ISERR(C9/4),\"\",CEILING(C9/4,0.5))","v":0},"/ 20"]
[null,"Sous épreuve E 32\nOrganisation d'interventions\nà domicile",{"$f":"Classe!G19","v":0},"/ 40",{"$f":"IF(ISERR(C10/2),\"\",CEILING(C10/2,0.5))","v":0},"/ 20"]
[null,"Sous épreuve E 33\nAménagement et équipement\nde l'espace privé",{"$f":"Classe!H19","v":0},"/ 40",{"$f":"IF(ISERR(C11/2),\"\",CEILING(C11/2,0.5))","v":0},"/ 20"]
[]
[]
[]
["Cachet de l'établissement",null,{"$f":"\"A \"&Classe!L5","v":"A "}]
[null,null,{"$f":"IF(ISBLANK(Classe!L6),\"Le \",Classe!L6)","v":"Le "}]
[]
[null,null,"Nom et signature du chef d'établissement"]
[]
[]
[]
[]
[]
[]
[]
[null,null,{"$f":"IF(ISBLANK(Classe!L6),\"\",Classe!L6)","v":""}]
[]
[]
["(*)La note proposée est arrondie au demi-point supérieur, elle figurera donc en points entiers ou en ½ points"]
[]
["Remarque : Les notes des évaluations par CCF ne sont jamais communiquées aux candidats ni prises en compte dans les moyennes trimestrielles. Elles sont proposées au jury."]

{"sheet":"EL_10","index":10,"n_rows":31,"n_cols":6,"rows_kept":31,"cut":false,"hidden":false,"merged":[[28,0,28,5],[30,0,30,5],[4,2,4,5],[5,0,5,5],[6,0,6,1],[6,2,6,3],[6,4,6,5],[8,0,10,0],[3,0,3,5],[0,0,2,0],[0,1,2,1],[0,3,0,5],[1,3,1,5],[2,3,2,5]]}
[null,{"$f":"Classe!A3","v":"(Nom et adresse)"},"Nom :",{"$f":"IF(ISBLANK(Classe!B20),\"\",Classe!B20)","v":""}]
[null,null,"Prénom :",{"$f":"IF(ISBLANK(Classe!C20),\"\",Classe!C20)","v":""}]
[null,null,"Session :",{"$f":"Classe!F2","v":2014}]
[]
["BAC PRO\n ASSP\nOption A\n\"A domicile\"","Fiche individuelle récapitulative\ndes notes obtenues\naux évaluations en CCF\ndans le domaine professionnel"]
[]
[null,null,"Note obtenue (coefficientée)",null,"Note proposée\nau jury (*)"]
["E1\nEpreuve\nscientifique\net technique","Sous épreuve E 13\nConduite d'un projet d'accompagnement",{"$f":"Classe!D20","v":0},"/ 80",{"$f":"IF(ISERR(C8/4),\"\",CEILING(C8/4,0.5))","v":0},"/ 20"]
["E 3\nEpreuve professionnelle","Sous épreuve E 31\nAccompagnement des actes de la vie quotidienne\nà domicile",{"$f":"Classe!F20","v":0},"/ 80",{"$f":"IF(ISERR(C9/4),\"\",CEILING(C9/4,0.5))","v":0},"/ 20"]
[null,"Sous épreuve E 32\nOrganisation d'interventions\nà domicile",{"$f":"Classe!G20","v":0},"/ 40",{"$f":"IF(ISERR(C10/2),\"\",CEILING(C10/2,0.5))","v":0},"/ 20"]
[null,"Sous épreuve E 33\nAménagement et équipement\nde l'espace privé",{"$f":"Classe!H20","v":0},"/ 40",{"$f":"IF(ISERR(C11/2),\"\",CEILING(C11/2,0.5))","v":0},"/ 20"]
[]
[]
[]
["Cachet de l'établissement",null,{"$f":"\"A \"&Classe!L5","v":"A "}]
[null,null,{"$f":"IF(ISBLANK(Classe!L6),\"Le \",Classe!L6)","v":"Le "}]
[]
[null,null,"Nom et signature du chef d'établissement"]
[]
[]
[]
[]
[]
[]
[]
[null,null,{"$f":"IF(ISBLANK(Classe!L6),\"\",Classe!L6)","v":""}]
[]
[]
["(*)La note proposée est arrondie au demi-point supérieur, elle figurera donc en points entiers ou en ½ points"]
[]
["Remarque : Les notes des évaluations par CCF ne sont jamais communiquées aux candidats ni prises en compte dans les moyennes trimestrielles. Elles sont proposées au jury."]

{"sheet":"EL_11","index":11,"n_rows":31,"n_cols":6,"rows_kept":31,"cut":false,"hidden":false,"merged":[[28,0,28,5],[30,0,30,5],[4,2,4,5],[5,0,5,5],[6,0,6,1],[6,2,6,3],[6,4,6,5],[8,0,10,0],[3,0,3,5],[0,0,2,0],[0,1,2,1],[0,3,0,5],[1,3,1,5],[2,3,2,5]]}
[null,{"$f":"Classe!A3","v":"(Nom et adresse)"},"Nom :",{"$f":"IF(ISBLANK(Classe!B21),\"\",Classe!B21)","v":""}]
[null,null,"Prénom :",{"$f":"IF(ISBLANK(Classe!C21),\"\",Classe!C21)","v":""}]
[null,null,"Session :",{"$f":"Classe!F2","v":2014}]
[]
["BAC PRO\n ASSP\nOption A\n\"A domicile\"","Fiche individuelle récapitulative\ndes notes obtenues\naux évaluations en CCF\ndans le domaine professionnel"]
[]
[null,null,"Note obtenue (coefficientée)",null,"Note proposée\nau jury (*)"]
["E1\nEpreuve\nscientifique\net technique","Sous épreuve E 13\nConduite d'un projet d'accompagnement",{"$f":"Classe!D21","v":0},"/ 80",{"$f":"IF(ISERR(C8/4),\"\",CEILING(C8/4,0.5))","v":0},"/ 20"]
["E 3\nEpreuve professionnelle","Sous épreuve E 31\nAccompagnement des actes de la vie quotidienne\nà domicile",{"$f":"Classe!F21","v":0},"/ 80",{"$f":"IF(ISERR(C9/4),\"\",CEILING(C9/4,0.5))","v":0},"/ 20"]
[null,"Sous épreuve E 32\nOrganisation d'interventions\nà domicile",{"$f":"Classe!G21","v":0},"/ 40",{"$f":"IF(ISERR(C10/2),\"\",CEILING(C10/2,0.5))","v":0},"/ 20"]
[null,"Sous épreuve E 33\nAménagement et équipement\nde l'espace privé",{"$f":"Classe!H21","v":0},"/ 40",{"$f":"IF(ISERR(C11/2),\"\",CEILING(C11/2,0.5))","v":0},"/ 20"]
[]
[]
[]
["Cachet de l'établissement",null,{"$f":"\"A \"&Classe!L5","v":"A "}]
[null,null,{"$f":"IF(ISBLANK(Classe!L6),\"Le \",Classe!L6)","v":"Le "}]
[]
[null,null,"Nom et signature du chef d'établissement"]
[]
[]
[]
[]
[]
[]
[]
[null,null,{"$f":"IF(ISBLANK(Classe!L6),\"\",Classe!L6)","v":""}]
[]
[]
["(*)La note proposée est arrondie au demi-point supérieur, elle figurera donc en points entiers ou en ½ points"]
[]
["Remarque : Les notes des évaluations par CCF ne sont jamais communiquées aux candidats ni prises en compte dans les moyennes trimestrielles. Elles sont proposées au jury."]

{"sheet":"EL_12","index":12,"n_rows":31,"n_cols":6,"rows_kept":31,"cut":false,"hidden":false,"merged":[[28,0,28,5],[30,0,30,5],[4,2,4,5],[5,0,5,5],[6,0,6,1],[6,2,6,3],[6,4,6,5],[8,0,10,0],[3,0,3,5],[0,0,2,0],[0,1,2,1],[0,3,0,5],[1,3,1,5],[2,3,2,5]]}
[null,{"$f":"Classe!A3","v":"(Nom et adresse)"},"Nom :",{"$f":"IF(ISBLANK(Classe!B22),\"\",Classe!B22)","v":""}]
[null,null,"Prénom :",{"$f":"IF(ISBLANK(Classe!C22),\"\",Classe!C22)","v":""}]
[null,null,"Session :",{"$f":"Classe!F2","v":2014}]
[]
["BAC PRO\n ASSP\nOption A\n\"A domicile\"","Fiche individuelle récapitulative\ndes notes obtenues\naux évaluations en CCF\ndans le domaine professionnel"]
[]
[null,null,"Note obtenue (coefficientée)",null,"Note proposée\nau jury (*)"]
["E1\nEpreuve\nscientifique\net technique","Sous épreuve E 13\nConduite d'un projet d'accompagnement",{"$f":"Classe!D22","v":0},"/ 80",{"$f":"IF(ISERR(C8/4),\"\",CEILING(C8/4,0.5))","v":0},"/ 20"]
["E 3\nEpreuve professionnelle","Sous épreuve E 31\nAccompagnement des actes de la vie quotidienne\nà domicile",{"$f":"Classe!F22","v":0},"/ 80",{"$f":"IF(ISERR(C9/4),\"\",CEILING(C9/4,0.5))","v":0},"/ 20"]
[null,"Sous épreuve E 32\nOrganisation d'interventions\nà domicile",{"$f":"Classe!G22","v":0},"/ 40",{"$f":"IF(ISERR(C10/2),\"\",CEILING(C10/2,0.5))","v":0},"/ 20"]
[null,"Sous épreuve E 33\nAménagement et équipement\nde l'espace privé",{"$f":"Classe!H22","v":0},"/ 40",{"$f":"IF(ISERR(C11/2),\"\",CEILING(C11/2,0.5))","v":0},"/ 20"]
[]
[]
[]
["Cachet de l'établissement",null,{"$f":"\"A \"&Classe!L5","v":"A "}]
[null,null,{"$f":"IF(ISBLANK(Classe!L6),\"Le \",Classe!L6)","v":"Le "}]
[]
[null,null,"Nom et signature du chef d'établissement"]
[]
[]
[]
[]
[]
[]
[]
[null,null,{"$f":"IF(ISBLANK(Classe!L6),\"\",Classe!L6)","v":""}]
[]
[]
["(*)La note proposée est arrondie au demi-point supérieur, elle figurera donc en points entiers ou en ½ points"]
[]
["Remarque : Les notes des évaluations par CCF ne sont jamais communiquées aux candidats ni prises en compte dans les moyennes trimestrielles. Elles sont proposées au jury."]

{"sheet":"EL_13","index":13,"n_rows":31,"n_cols":6,"rows_kept":31,"cut":false,"hidden":false,"merged":[[28,0,28,5],[30,0,30,5],[4,2,4,5],[5,0,5,5],[6,0,6,1],[6,2,6,3],[6,4,6,5],[8,0,10,0],[3,0,3,5],[0,0,2,0],[0,1,2,1],[0,3,0,5],[1,3,1,5],[2,3,2,5]]}
[null,{"$f":"Classe!A3","v":"(Nom et adresse)"},"Nom :",{"$f":"IF(ISBLANK(Classe!B23),\"\",Classe!B23)","v":""}]
[null,null,"Prénom :",{"$f":"IF(ISBLANK(Classe!C23),\"\",Classe!C23)","v":""}]
[null,null,"Session :",{"$f":"Classe!F2","v":2014}]
[]
["BAC PRO\n ASSP\nOption A\n\"A domicile\"","Fiche individuelle récapitulative\ndes notes obtenues\naux évaluations en CCF\ndans le domaine professionnel"]
[]
[null,null,"Note obtenue (coefficientée)",null,"Note proposée\nau jury (*)"]
["E1\nEpreuve\nscientifique\net technique","Sous épreuve E 13\nConduite d'un projet d'accompagnement",{"$f":"Classe!D23","v":0},"/ 80",{"$f":"IF(ISERR(C8/4),\"\",CEILING(C8/4,0.5))","v":0},"/ 20"]
["E 3\nEpreuve professionnelle","Sous épreuve E 31\nAccompagnement des actes de la vie quotidienne\nà domicile",{"$f":"Classe!F23","v":0},"/ 80",{"$f":"IF(ISERR(C9/4),\"\",CEILING(C9/4,0.5))","v":0},"/ 20"]
[null,"Sous épreuve E 32\nOrganisation d'interventions\nà domicile",{"$f":"Classe!G23","v":0},"/ 40",{"$f":"IF(ISERR(C10/2),\"\",CEILING(C10/2,0.5))","v":0},"/ 20"]
[null,"Sous épreuve E 33\nAménagement et équipement\nde l'espace privé",{"$f":"Classe!H23","v":0},"/ 40",{"$f":"IF(ISERR(C11/2),\"\",CEILING(C11/2,0.5))","v":0},"/ 20"]
[]
[]
[]
["Cachet de l'établissement",null,{"$f":"\"A \"&Classe!L5","v":"A "}]
[null,null,{"$f":"IF(ISBLANK(Classe!L6),\"Le \",Classe!L6)","v":"Le "}]
[]
[null,null,"Nom et signature du chef d'établissement"]
[]
[]
[]
[]
[]
[]
[]
[null,null,{"$f":"IF(ISBLANK(Classe!L6),\"\",Classe!L6)","v":""}]
[]
[]
["(*)La note proposée est arrondie au demi-point supérieur, elle figurera donc en points entiers ou en ½ points"]
[]
["Remarque : Les notes des évaluations par CCF ne sont jamais communiquées aux candidats ni prises en compte dans les moyennes trimestrielles. Elles sont proposées au jury."]

{"sheet":"EL_14","index":14,"n_rows":31,"n_cols":6,"rows_kept":31,"cut":false,"hidden":false,"merged":[[28,0,28,5],[30,0,30,5],[4,2,4,5],[5,0,5,5],[6,0,6,1],[6,2,6,3],[6,4,6,5],[8,0,10,0],[3,0,3,5],[0,0,2,0],[0,1,2,1],[0,3,0,5],[1,3,1,5],[2,3,2,5]]}
[null,{"$f":"Classe!A3","v":"(Nom et adresse)"},"Nom :",{"$f":"IF(ISBLANK(Classe!B24),\"\",Classe!B24)","v":""}]
[null,null,"Prénom :",{"$f":"IF(ISBLANK(Classe!C24),\"\",Classe!C24)","v":""}]
[null,null,"Session :",{"$f":"Classe!F2","v":2014}]
[]
["BAC PRO\n ASSP\nOption A\n\"A domicile\"","Fiche individuelle récapitulative\ndes notes obtenues\naux évaluations en CCF\ndans le domaine professionnel"]
[]
[null,null,"Note obtenue (coefficientée)",null,"Note proposée\nau jury (*)"]
["E1\nEpreuve\nscientifique\net technique","Sous épreuve E 13\nConduite d'un projet d'accompagnement",{"$f":"Classe!D24","v":0},"/ 80",{"$f":"IF(ISERR(C8/4),\"\",CEILING(C8/4,0.5))","v":0},"/ 20"]
["E 3\nEpreuve professionnelle","Sous épreuve E 31\nAccompagnement des actes de la vie quotidienne\nà domicile",{"$f":"Classe!F24","v":0},"/ 80",{"$f":"IF(ISERR(C9/4),\"\",CEILING(C9/4,0.5))","v":0},"/ 20"]
[null,"Sous épreuve E 32\nOrganisation d'interventions\nà domicile",{"$f":"Classe!G24","v":0},"/ 40",{"$f":"IF(ISERR(C10/2),\"\",CEILING(C10/2,0.5))","v":0},"/ 20"]
[null,"Sous épreuve E 33\nAménagement et équipement\nde l'espace privé",{"$f":"Classe!H24","v":0},"/ 40",{"$f":"IF(ISERR(C11/2),\"\",CEILING(C11/2,0.5))","v":0},"/ 20"]
[]
[]
[]
["Cachet de l'établissement",null,{"$f":"\"A \"&Classe!L5","v":"A "}]
[null,null,{"$f":"IF(ISBLANK(Classe!L6),\"Le \",Classe!L6)","v":"Le "}]
[]
[null,null,"Nom et signature du chef d'établissement"]
[]
[]
[]
[]
[]
[]
[]
[null,null,{"$f":"IF(ISBLANK(Classe!L6),\"\",Classe!L6)","v":""}]
[]
[]
["(*)La note proposée est arrondie au demi-point supérieur, elle figurera donc en points entiers ou en ½ points"]
[]
["Remarque : Les notes des évaluations par CCF ne sont jamais communiquées aux candidats ni prises en compte dans les moyennes trimestrielles. Elles sont proposées au jury."]

{"sheet":"EL_15","index":15,"n_rows":31,"n_cols":6,"rows_kept":31,"cut":false,"hidden":false,"merged":[[28,0,28,5],[30,0,30,5],[4,2,4,5],[5,0,5,5],[6,0,6,1],[6,2,6,3],[6,4,6,5],[8,0,10,0],[3,0,3,5],[0,0,2,0],[0,1,2,1],[0,3,0,5],[1,3,1,5],[2,3,2,5]]}
[null,{"$f":"Classe!A3","v":"(Nom et adresse)"},"Nom :",{"$f":"IF(ISBLANK(Classe!B25),\"\",Classe!B25)","v":""}]
[null,null,"Prénom :",{"$f":"IF(ISBLANK(Classe!C25),\"\",Classe!C25)","v":""}]
[null,null,"Session :",{"$f":"Classe!F2","v":2014}]
[]
["BAC PRO\n ASSP\nOption A\n\"A domicile\"","Fiche individuelle récapitulative\ndes notes obtenues\naux évaluations en CCF\ndans le domaine professionnel"]
[]
[null,null,"Note obtenue (coefficientée)",null,"Note proposée\nau jury (*)"]
["E1\nEpreuve\nscientifique\net technique","Sous épreuve E 13\nConduite d'un projet d'accompagnement",{"$f":"Classe!D25","v":0},"/ 80",{"$f":"IF(ISERR(C8/4),\"\",CEILING(C8/4,0.5))","v":0},"/ 20"]
["E 3\nEpreuve professionnelle","Sous épreuve E 31\nAccompagnement des actes de la vie quotidienne\nà domicile",{"$f":"Classe!F25","v":0},"/ 80",{"$f":"IF(ISERR(C9/4),\"\",CEILING(C9/4,0.5))","v":0},"/ 20"]
[null,"Sous épreuve E 32\nOrganisation d'interventions\nà domicile",{"$f":"Classe!G25","v":0},"/ 40",{"$f":"IF(ISERR(C10/2),\"\",CEILING(C10/2,0.5))","v":0},"/ 20"]
[null,"Sous épreuve E 33\nAménagement et équipement\nde l'espace privé",{"$f":"Classe!H25","v":0},"/ 40",{"$f":"IF(ISERR(C11/2),\"\",CEILING(C11/2,0.5))","v":0},"/ 20"]
[]
[]
[]
["Cachet de l'établissement",null,{"$f":"\"A \"&Classe!L5","v":"A "}]
[null,null,{"$f":"IF(ISBLANK(Classe!L6),\"Le \",Classe!L6)","v":"Le "}]
[]
[null,null,"Nom et signature du chef d'établissement"]
[]
[]
[]
[]
[]
[]
[]
[null,null,{"$f":"IF(ISBLANK(Classe!L6),\"\",Classe!L6)","v":""}]
[]
[]
["(*)La note proposée est arrondie au demi-point supérieur, elle figurera donc en points entiers ou en ½ points"]
[]
["Remarque : Les notes des évaluations par CCF ne sont jamais communiquées aux candidats ni prises en compte dans les moyennes trimestrielles. Elles sont proposées au jury."]

{"sheet":"EL_16","index":16,"n_rows":31,"n_cols":6,"rows_kept":31,"cut":false,"hidden":false,"merged":[[28,0,28,5],[30,0,30,5],[4,2,4,5],[5,0,5,5],[6,0,6,1],[6,2,6,3],[6,4,6,5],[8,0,10,0],[3,0,3,5],[0,0,2,0],[0,1,2,1],[0,3,0,5],[1,3,1,5],[2,3,2,5]]}
[null,{"$f":"Classe!A3","v":"(Nom et adresse)"},"Nom :",{"$f":"IF(ISBLANK(Classe!B26),\"\",Classe!B26)","v":""}]
[null,null,"Prénom :",{"$f":"IF(ISBLANK(Classe!C26),\"\",Classe!C26)","v":""}]
[null,null,"Session :",{"$f":"Classe!F2","v":2014}]
[]
["BAC PRO\n ASSP\nOption A\n\"A domicile\"","Fiche individuelle récapitulative\ndes notes obtenues\naux évaluations en CCF\ndans le domaine professionnel"]
[]
[null,null,"Note obtenue (coefficientée)",null,"Note proposée\nau jury (*)"]
["E1\nEpreuve\nscientifique\net technique","Sous épreuve E 13\nConduite d'un projet d'accompagnement",{"$f":"Classe!D26","v":0},"/ 80",{"$f":"IF(ISERR(C8/4),\"\",CEILING(C8/4,0.5))","v":0},"/ 20"]
["E 3\nEpreuve professionnelle","Sous épreuve E 31\nAccompagnement des actes de la vie quotidienne\nà domicile",{"$f":"Classe!F26","v":0},"/ 80",{"$f":"IF(ISERR(C9/4),\"\",CEILING(C9/4,0.5))","v":0},"/ 20"]
[null,"Sous épreuve E 32\nOrganisation d'interventions\nà domicile",{"$f":"Classe!G26","v":0},"/ 40",{"$f":"IF(ISERR(C10/2),\"\",CEILING(C10/2,0.5))","v":0},"/ 20"]
[null,"Sous épreuve E 33\nAménagement et équipement\nde l'espace privé",{"$f":"Classe!H26","v":0},"/ 40",{"$f":"IF(ISERR(C11/2),\"\",CEILING(C11/2,0.5))","v":0},"/ 20"]
[]
[]
[]
["Cachet de l'établissement",null,{"$f":"\"A \"&Classe!L5","v":"A "}]
[null,null,{"$f":"IF(ISBLANK(Classe!L6),\"Le \",Classe!L6)","v":"Le "}]
[]
[null,null,"Nom et signature du chef d'établissement"]
[]
[]
[]
[]
[]
[]
[]
[null,null,{"$f":"IF(ISBLANK(Classe!L6),\"\",Classe!L6)","v":""}]
[]
[]
["(*)La note proposée est arrondie au demi-point supérieur, elle figurera donc en points entiers ou en ½ points"]
[]
["Remarque : Les notes des évaluations par CCF ne sont jamais communiquées aux candidats ni prises en compte dans les moyennes trimestrielles. Elles sont proposées au jury."]

{"sheet":"EL_17","index":17,"n_rows":31,"n_cols":6,"rows_kept":31,"cut":false,"hidden":false,"merged":[[28,0,28,5],[30,0,30,5],[4,2,4,5],[5,0,5,5],[6,0,6,1],[6,2,6,3],[6,4,6,5],[8,0,10,0],[3,0,3,5],[0,0,2,0],[0,1,2,1],[0,3,0,5],[1,3,1,5],[2,3,2,5]]}
[null,{"$f":"Classe!A3","v":"(Nom et adresse)"},"Nom :",{"$f":"IF(ISBLANK(Classe!B27),\"\",Classe!B27)","v":""}]
[null,null,"Prénom :",{"$f":"IF(ISBLANK(Classe!C27),\"\",Classe!C27)","v":""}]
[null,null,"Session :",{"$f":"Classe!F2","v":2014}]
[]
["BAC PRO\n ASSP\nOption A\n\"A domicile\"","Fiche individuelle récapitulative\ndes notes obtenues\naux évaluations en CCF\ndans le domaine professionnel"]
[]
[null,null,"Note obtenue (coefficientée)",null,"Note proposée\nau jury (*)"]
["E1\nEpreuve\nscientifique\net technique","Sous épreuve E 13\nConduite d'un projet d'accompagnement",{"$f":"Classe!D27","v":0},"/ 80",{"$f":"IF(ISERR(C8/4),\"\",CEILING(C8/4,0.5))","v":0},"/ 20"]
["E 3\nEpreuve professionnelle","Sous épreuve E 31\nAccompagnement des actes de la vie quotidienne\nà domicile",{"$f":"Classe!F27","v":0},"/ 80",{"$f":"IF(ISERR(C9/4),\"\",CEILING(C9/4,0.5))","v":0},"/ 20"]
[null,"Sous épreuve E 32\nOrganisation d'interventions\nà domicile",{"$f":"Classe!G27","v":0},"/ 40",{"$f":"IF(ISERR(C10/2),\"\",CEILING(C10/2,0.5))","v":0},"/ 20"]
[null,"Sous épreuve E 33\nAménagement et équipement\nde l'espace privé",{"$f":"Classe!H27","v":0},"/ 40",{"$f":"IF(ISERR(C11/2),\"\",CEILING(C11/2,0.5))","v":0},"/ 20"]
[]
[]
[]
["Cachet de l'établissement",null,{"$f":"\"A \"&Classe!L5","v":"A "}]
[null,null,{"$f":"IF(ISBLANK(Classe!L6),\"Le \",Classe!L6)","v":"Le "}]
[]
[null,null,"Nom et signature du chef d'établissement"]
[]
[]
[]
[]
[]
[]
[]
[null,null,{"$f":"IF(ISBLANK(Classe!L6),\"\",Classe!L6)","v":""}]
[]
[]
["(*)La note proposée est arrondie au demi-point supérieur, elle figurera donc en points entiers ou en ½ points"]
[]
["Remarque : Les notes des évaluations par CCF ne sont jamais communiquées aux candidats ni prises en compte dans les moyennes trimestrielles. Elles sont proposées au jury."]

{"sheet":"EL_18","index":18,"n_rows":31,"n_cols":6,"rows_kept":31,"cut":false,"hidden":false,"merged":[[28,0,28,5],[30,0,30,5],[4,2,4,5],[5,0,5,5],[6,0,6,1],[6,2,6,3],[6,4,6,5],[8,0,10,0],[3,0,3,5],[0,0,2,0],[0,1,2,1],[0,3,0,5],[1,3,1,5],[2,3,2,5]]}
[null,{"$f":"Classe!A3","v":"(Nom et adresse)"},"Nom :",{"$f":"IF(ISBLANK(Classe!B28),\"\",Classe!B28)","v":""}]
[null,null,"Prénom :",{"$f":"IF(ISBLANK(Classe!C28),\"\",Classe!C28)","v":""}]
[null,null,"Session :",{"$f":"Classe!F2","v":2014}]
[]
["BAC PRO\n ASSP\nOption A\n\"A domicile\"","Fiche individuelle récapitulative\ndes notes obtenues\naux évaluations en CCF\ndans le domaine professionnel"]
[]
[null,null,"Note obtenue (coefficientée)",null,"Note proposée\nau jury (*)"]
["E1\nEpreuve\nscientifique\net technique","Sous épreuve E 13\nConduite d'un projet d'accompagnement",{"$f":"Classe!D28","v":0},"/ 80",{"$f":"IF(ISERR(C8/4),\"\",CEILING(C8/4,0.5))","v":0},"/ 20"]
["E 3\nEpreuve professionnelle","Sous épreuve E 31\nAccompagnement des actes de la vie quotidienne\nà domicile",{"$f":"Classe!F28","v":0},"/ 80",{"$f":"IF(ISERR(C9/4),\"\",CEILING(C9/4,0.5))","v":0},"/ 20"]
[null,"Sous épreuve E 32\nOrganisation d'interventions\nà domicile",{"$f":"Classe!G28","v":0},"/ 40",{"$f":"IF(ISERR(C10/2),\"\",CEILING(C10/2,0.5))","v":0},"/ 20"]
[null,"Sous épreuve E 33\nAménagement et équipement\nde l'espace privé",{"$f":"Classe!H28","v":0},"/ 40",{"$f":"IF(ISERR(C11/2),\"\",CEILING(C11/2,0.5))","v":0},"/ 20"]
[]
[]
[]
["Cachet de l'établissement",null,{"$f":"\"A \"&Classe!L5","v":"A "}]
[null,null,{"$f":"IF(ISBLANK(Classe!L6),\"Le \",Classe!L6)","v":"Le "}]
[]
[null,null,"Nom et signature du chef d'établissement"]
[]
[]
[]
[]
[]
[]
[]
[null,null,{"$f":"IF(ISBLANK(Classe!L6),\"\",Classe!L6)","v":""}]
[]
[]
["(*)La note proposée est arrondie au demi-point supérieur, elle figurera donc en points entiers ou en ½ points"]
[]
["Remarque : Les notes des évaluations par CCF ne sont jamais communiquées aux candidats ni prises en compte dans les moyennes trimestrielles. Elles sont proposées au jury."]

{"sheet":"EL_19","index":19,"n_rows":31,"n_cols":6,"rows_kept":31,"cut":false,"hidden":false,"merged":[[28,0,28,5],[30,0,30,5],[4,2,4,5],[5,0,5,5],[6,0,6,1],[6,2,6,3],[6,4,6,5],[8,0,10,0],[3,0,3,5],[0,0,2,0],[0,1,2,1],[0,3,0,5],[1,3,1,5],[2,3,2,5]]}
[null,{"$f":"Classe!A3","v":"(Nom et adresse)"},"Nom :",{"$f":"IF(ISBLANK(Classe!B29),\"\",Classe!B29)","v":""}]
[null,null,"Prénom :",{"$f":"IF(ISBLANK(Classe!C29),\"\",Classe!C29)","v":""}]
[null,null,"Session :",{"$f":"Classe!F2","v":2014}]
[]
["BAC PRO\n ASSP\nOption A\n\"A domicile\"","Fiche individuelle récapitulative\ndes notes obtenues\naux évaluations en CCF\ndans le domaine professionnel"]
[]
[null,null,"Note obtenue (coefficientée)",null,"Note proposée\nau jury (*)"]
["E1\nEpreuve\nscientifique\net technique","Sous épreuve E 13\nConduite d'un projet d'accompagnement",{"$f":"Classe!D29","v":0},"/ 80",{"$f":"IF(ISERR(C8/4),\"\",CEILING(C8/4,0.5))","v":0},"/ 20"]
["E 3\nEpreuve professionnelle","Sous épreuve E 31\nAccompagnement des actes de la vie quotidienne\nà domicile",{"$f":"Classe!F29","v":0},"/ 80",{"$f":"IF(ISERR(C9/4),\"\",CEILING(C9/4,0.5))","v":0},"/ 20"]
[null,"Sous épreuve E 32\nOrganisation d'interventions\nà domicile",{"$f":"Classe!G29","v":0},"/ 40",{"$f":"IF(ISERR(C10/2),\"\",CEILING(C10/2,0.5))","v":0},"/ 20"]
[null,"Sous épreuve E 33\nAménagement et équipement\nde l'espace privé",{"$f":"Classe!H29","v":0},"/ 40",{"$f":"IF(ISERR(C11/2),\"\",CEILING(C11/2,0.5))","v":0},"/ 20"]
[]
[]
[]
["Cachet de l'établissement",null,{"$f":"\"A \"&Classe!L5","v":"A "}]
[null,null,{"$f":"IF(ISBLANK(Classe!L6),\"Le \",Classe!L6)","v":"Le "}]
[]
[null,null,"Nom et signature du chef d'établissement"]
[]
[]
[]
[]
[]
[]
[]
[null,null,{"$f":"IF(ISBLANK(Classe!L6),\"\",Classe!L6)","v":""}]
[]
[]
["(*)La note proposée est arrondie au demi-point supérieur, elle figurera donc en points entiers ou en ½ points"]
[]
["Remarque : Les notes des évaluations par CCF ne sont jamais communiquées aux candidats ni prises en compte dans les moyennes trimestrielles. Elles sont proposées au jury."]

{"sheet":"EL_20","index":20,"n_rows":31,"n_cols":6,"rows_kept":31,"cut":false,"hidden":false,"merged":[[28,0,28,5],[30,0,30,5],[4,2,4,5],[5,0,5,5],[6,0,6,1],[6,2,6,3],[6,4,6,5],[8,0,10,0],[3,0,3,5],[0,0,2,0],[0,1,2,1],[0,3,0,5],[1,3,1,5],[2,3,2,5]]}
[null,{"$f":"Classe!A3","v":"(Nom et adresse)"},"Nom :",{"$f":"IF(ISBLANK(Classe!B30),\"\",Classe!B30)","v":""}]
[null,null,"Prénom :",{"$f":"IF(ISBLANK(Classe!C30),\"\",Classe!C30)","v":""}]
[null,null,"Session :",{"$f":"Classe!F2","v":2014}]
[]
["BAC PRO\n ASSP\nOption A\n\"A domicile\"","Fiche individuelle récapitulative\ndes notes obtenues\naux évaluations en CCF\ndans le domaine professionnel"]
[]
[null,null,"Note obtenue (coefficientée)",null,"Note proposée\nau jury (*)"]
["E1\nEpreuve\nscientifique\net technique","Sous épreuve E 13\nConduite d'un projet d'accompagnement",{"$f":"Classe!D30","v":0},"/ 80",{"$f":"IF(ISERR(C8/4),\"\",CEILING(C8/4,0.5))","v":0},"/ 20"]
["E 3\nEpreuve professionnelle","Sous épreuve E 31\nAccompagnement des actes de la vie quotidienne\nà domicile",{"$f":"Classe!F30","v":0},"/ 80",{"$f":"IF(ISERR(C9/4),\"\",CEILING(C9/4,0.5))","v":0},"/ 20"]
[null,"Sous épreuve E 32\nOrganisation d'interventions\nà domicile",{"$f":"Classe!G30","v":0},"/ 40",{"$f":"IF(ISERR(C10/2),\"\",CEILING(C10/2,0.5))","v":0},"/ 20"]
[null,"Sous épreuve E 33\nAménagement et équipement\nde l'espace privé",{"$f":"Classe!H30","v":0},"/ 40",{"$f":"IF(ISERR(C11/2),\"\",CEILING(C11/2,0.5))","v":0},"/ 20"]
[]
[]
[]
["Cachet de l'établissement",null,{"$f":"\"A \"&Classe!L5","v":"A "}]
[null,null,{"$f":"IF(ISBLANK(Classe!L6),\"Le \",Classe!L6)","v":"Le "}]
[]
[null,null,"Nom et signature du chef d'établissement"]
[]
[]
[]
[]
[]
[]
[]
[null,null,{"$f":"IF(ISBLANK(Classe!L6),\"\",Classe!L6)","v":""}]
[]
[]
["(*)La note proposée est arrondie au demi-point supérieur, elle figurera donc en points entiers ou en ½ points"]
[]
["Remarque : Les notes des évaluations par CCF ne sont jamais communiquées aux candidats ni prises en compte dans les moyennes trimestrielles. Elles sont proposées au jury."]

{"sheet":"EL_21","index":21,"n_rows":31,"n_cols":6,"rows_kept":31,"cut":false,"hidden":false,"merged":[[28,0,28,5],[30,0,30,5],[4,2,4,5],[5,0,5,5],[6,0,6,1],[6,2,6,3],[6,4,6,5],[8,0,10,0],[3,0,3,5],[0,0,2,0],[0,1,2,1],[0,3,0,5],[1,3,1,5],[2,3,2,5]]}
[null,{"$f":"Classe!A3","v":"(Nom et adresse)"},"Nom :",{"$f":"IF(ISBLANK(Classe!B31),\"\",Classe!B31)","v":""}]
[null,null,"Prénom :",{"$f":"IF(ISBLANK(Classe!C31),\"\",Classe!C31)","v":""}]
[null,null,"Session :",{"$f":"Classe!F2","v":2014}]
[]
["BAC PRO\n ASSP\nOption A\n\"A domicile\"","Fiche individuelle récapitulative\ndes notes obtenues\naux évaluations en CCF\ndans le domaine professionnel"]
[]
[null,null,"Note obtenue (coefficientée)",null,"Note proposée\nau jury (*)"]
["E1\nEpreuve\nscientifique\net technique","Sous épreuve E 13\nConduite d'un projet d'accompagnement",{"$f":"Classe!D31","v":0},"/ 80",{"$f":"IF(ISERR(C8/4),\"\",CEILING(C8/4,0.5))","v":0},"/ 20"]
["E 3\nEpreuve professionnelle","Sous épreuve E 31\nAccompagnement des actes de la vie quotidienne\nà domicile",{"$f":"Classe!F31","v":0},"/ 80",{"$f":"IF(ISERR(C9/4),\"\",CEILING(C9/4,0.5))","v":0},"/ 20"]
[null,"Sous épreuve E 32\nOrganisation d'interventions\nà domicile",{"$f":"Classe!G31","v":0},"/ 40",{"$f":"IF(ISERR(C10/2),\"\",CEILING(C10/2,0.5))","v":0},"/ 20"]
[null,"Sous épreuve E 33\nAménagement et équipement\nde l'espace privé",{"$f":"Classe!H31","v":0},"/ 40",{"$f":"IF(ISERR(C11/2),\"\",CEILING(C11/2,0.5))","v":0},"/ 20"]
[]
[]
[]
["Cachet de l'établissement",null,{"$f":"\"A \"&Classe!L5","v":"A "}]
[null,null,{"$f":"IF(ISBLANK(Classe!L6),\"Le \",Classe!L6)","v":"Le "}]
[]
[null,null,"Nom et signature du chef d'établissement"]
[]
[]
[]
[]
[]
[]
[]
[null,null,{"$f":"IF(ISBLANK(Classe!L6),\"\",Classe!L6)","v":""}]
[]
[]
["(*)La note proposée est arrondie au demi-point supérieur, elle figurera donc en points entiers ou en ½ points"]
[]
["Remarque : Les notes des évaluations par CCF ne sont jamais communiquées aux candidats ni prises en compte dans les moyennes trimestrielles. Elles sont proposées au jury."]

{"sheet":"EL_22","index":22,"n_rows":31,"n_cols":6,"rows_kept":31,"cut":false,"hidden":false,"merged":[[28,0,28,5],[30,0,30,5],[4,2,4,5],[5,0,5,5],[6,0,6,1],[6,2,6,3],[6,4,6,5],[8,0,10,0],[3,0,3,5],[0,0,2,0],[0,1,2,1],[0,3,0,5],[1,3,1,5],[2,3,2,5]]}
[null,{"$f":"Classe!A3","v":"(Nom et adresse)"},"Nom :",{"$f":"IF(ISBLANK(Classe!B32),\"\",Classe!B32)","v":""}]
[null,null,"Prénom :",{"$f":"IF(ISBLANK(Classe!C32),\"\",Classe!C32)","v":""}]
[null,null,"Session :",{"$f":"Classe!F2","v":2014}]
[]
["BAC PRO\n ASSP\nOption A\n\"A domicile\"","Fiche individuelle récapitulative\ndes notes obtenues\naux évaluations en CCF\ndans le domaine professionnel"]
[]
[null,null,"Note obtenue (coefficientée)",null,"Note proposée\nau jury (*)"]
["E1\nEpreuve\nscientifique\net technique","Sous épreuve E 13\nConduite d'un projet d'accompagnement",{"$f":"Classe!D32","v":0},"/ 80",{"$f":"IF(ISERR(C8/4),\"\",CEILING(C8/4,0.5))","v":0},"/ 20"]
["E 3\nEpreuve professionnelle","Sous épreuve E 31\nAccompagnement des actes de la vie quotidienne\nà domicile",{"$f":"Classe!F32","v":0},"/ 80",{"$f":"IF(ISERR(C9/4),\"\",CEILING(C9/4,0.5))","v":0},"/ 20"]
[null,"Sous épreuve E 32\nOrganisation d'interventions\nà domicile",{"$f":"Classe!G32","v":0},"/ 40",{"$f":"IF(ISERR(C10/2),\"\",CEILING(C10/2,0.5))","v":0},"/ 20"]
[null,"Sous épreuve E 33\nAménagement et équipement\nde l'espace privé",{"$f":"Classe!H32","v":0},"/ 40",{"$f":"IF(ISERR(C11/2),\"\",CEILING(C11/2,0.5))","v":0},"/ 20"]
[]
[]
[]
["Cachet de l'établissement",null,{"$f":"\"A \"&Classe!L5","v":"A "}]
[null,null,{"$f":"IF(ISBLANK(Classe!L6),\"Le \",Classe!L6)","v":"Le "}]
[]
[null,null,"Nom et signature du chef d'établissement"]
[]
[]
[]
[]
[]
[]
[]
[null,null,{"$f":"IF(ISBLANK(Classe!L6),\"\",Classe!L6)","v":""}]
[]
[]
["(*)La note proposée est arrondie au demi-point supérieur, elle figurera donc en points entiers ou en ½ points"]
[]
["Remarque : Les notes des évaluations par CCF ne sont jamais communiquées aux candidats ni prises en compte dans les moyennes trimestrielles. Elles sont proposées au jury."]

{"sheet":"EL_23","index":23,"n_rows":31,"n_cols":6,"rows_kept":31,"cut":false,"hidden":false,"merged":[[28,0,28,5],[30,0,30,5],[4,2,4,5],[5,0,5,5],[6,0,6,1],[6,2,6,3],[6,4,6,5],[8,0,10,0],[3,0,3,5],[0,0,2,0],[0,1,2,1],[0,3,0,5],[1,3,1,5],[2,3,2,5]]}
[null,{"$f":"Classe!A3","v":"(Nom et adresse)"},"Nom :",{"$f":"IF(ISBLANK(Classe!B33),\"\",Classe!B33)","v":""}]
[null,null,"Prénom :",{"$f":"IF(ISBLANK(Classe!C33),\"\",Classe!C33)","v":""}]
[null,null,"Session :",{"$f":"Classe!F2","v":2014}]
[]
["BAC PRO\n ASSP\nOption A\n\"A domicile\"","Fiche individuelle récapitulative\ndes notes obtenues\naux évaluations en CCF\ndans le domaine professionnel"]
[]
[null,null,"Note obtenue (coefficientée)",null,"Note proposée\nau jury (*)"]
["E1\nEpreuve\nscientifique\net technique","Sous épreuve E 13\nConduite d'un projet d'accompagnement",{"$f":"Classe!D33","v":0},"/ 80",{"$f":"IF(ISERR(C8/4),\"\",CEILING(C8/4,0.5))","v":0},"/ 20"]
["E 3\nEpreuve professionnelle","Sous épreuve E 31\nAccompagnement des actes de la vie quotidienne\nà domicile",{"$f":"Classe!F33","v":0},"/ 80",{"$f":"IF(ISERR(C9/4),\"\",CEILING(C9/4,0.5))","v":0},"/ 20"]
[null,"Sous épreuve E 32\nOrganisation d'interventions\nà domicile",{"$f":"Classe!G33","v":0},"/ 40",{"$f":"IF(ISERR(C10/2),\"\",CEILING(C10/2,0.5))","v":0},"/ 20"]
[null,"Sous épreuve E 33\nAménagement et équipement\nde l'espace privé",{"$f":"Classe!H33","v":0},"/ 40",{"$f":"IF(ISERR(C11/2),\"\",CEILING(C11/2,0.5))","v":0},"/ 20"]
[]
[]
[]
["Cachet de l'établissement",null,{"$f":"\"A \"&Classe!L5","v":"A "}]
[null,null,{"$f":"IF(ISBLANK(Classe!L6),\"Le \",Classe!L6)","v":"Le "}]
[]
[null,null,"Nom et signature du chef d'établissement"]
[]
[]
[]
[]
[]
[]
[]
[null,null,{"$f":"IF(ISBLANK(Classe!L6),\"\",Classe!L6)","v":""}]
[]
[]
["(*)La note proposée est arrondie au demi-point supérieur, elle figurera donc en points entiers ou en ½ points"]
[]
["Remarque : Les notes des évaluations par CCF ne sont jamais communiquées aux candidats ni prises en compte dans les moyennes trimestrielles. Elles sont proposées au jury."]

{"sheet":"EL_24","index":24,"n_rows":31,"n_cols":6,"rows_kept":31,"cut":false,"hidden":false,"merged":[[28,0,28,5],[30,0,30,5],[4,2,4,5],[5,0,5,5],[6,0,6,1],[6,2,6,3],[6,4,6,5],[8,0,10,0],[3,0,3,5],[0,0,2,0],[0,1,2,1],[0,3,0,5],[1,3,1,5],[2,3,2,5]]}
[null,{"$f":"Classe!A3","v":"(Nom et adresse)"},"Nom :",{"$f":"IF(ISBLANK(Classe!B34),\"\",Classe!B34)","v":""}]
[null,null,"Prénom :",{"$f":"IF(ISBLANK(Classe!C34),\"\",Classe!C34)","v":""}]
[null,null,"Session :",{"$f":"Classe!F2","v":2014}]
[]
["BAC PRO\n ASSP\nOption A\n\"A domicile\"","Fiche individuelle récapitulative\ndes notes obtenues\naux évaluations en CCF\ndans le domaine professionnel"]
[]
[null,null,"Note obtenue (coefficientée)",null,"Note proposée\nau jury (*)"]
["E1\nEpreuve\nscientifique\net technique","Sous épreuve E 13\nConduite d'un projet d'accompagnement",{"$f":"Classe!D34","v":0},"/ 80",{"$f":"IF(ISERR(C8/4),\"\",CEILING(C8/4,0.5))","v":0},"/ 20"]
["E 3\nEpreuve professionnelle","Sous épreuve E 31\nAccompagnement des actes de la vie quotidienne\nà domicile",{"$f":"Classe!F34","v":0},"/ 80",{"$f":"IF(ISERR(C9/4),\"\",CEILING(C9/4,0.5))","v":0},"/ 20"]
[null,"Sous épreuve E 32\nOrganisation d'interventions\nà domicile",{"$f":"Classe!G34","v":0},"/ 40",{"$f":"IF(ISERR(C10/2),\"\",CEILING(C10/2,0.5))","v":0},"/ 20"]
[null,"Sous épreuve E 33\nAménagement et équipement\nde l'espace privé",{"$f":"Classe!H34","v":0},"/ 40",{"$f":"IF(ISERR(C11/2),\"\",CEILING(C11/2,0.5))","v":0},"/ 20"]
[]
[]
[]
["Cachet de l'établissement",null,{"$f":"\"A \"&Classe!L5","v":"A "}]
[null,null,{"$f":"IF(ISBLANK(Classe!L6),\"Le \",Classe!L6)","v":"Le "}]
[]
[null,null,"Nom et signature du chef d'établissement"]
[]
[]
[]
[]
[]
[]
[]
[null,null,{"$f":"IF(ISBLANK(Classe!L6),\"\",Classe!L6)","v":""}]
[]
[]
["(*)La note proposée est arrondie au demi-point supérieur, elle figurera donc en points entiers ou en ½ points"]
[]
["Remarque : Les notes des évaluations par CCF ne sont jamais communiquées aux candidats ni prises en compte dans les moyennes trimestrielles. Elles sont proposées au jury."]

{"sheet":"EL_25","index":25,"n_rows":31,"n_cols":6,"rows_kept":31,"cut":false,"hidden":false,"merged":[[28,0,28,5],[30,0,30,5],[4,2,4,5],[5,0,5,5],[6,0,6,1],[6,2,6,3],[6,4,6,5],[8,0,10,0],[3,0,3,5],[0,0,2,0],[0,1,2,1],[0,3,0,5],[1,3,1,5],[2,3,2,5]]}
[null,{"$f":"Classe!A3","v":"(Nom et adresse)"},"Nom :",{"$f":"IF(ISBLANK(Classe!B35),\"\",Classe!B35)","v":""}]
[null,null,"Prénom :",{"$f":"IF(ISBLANK(Classe!C35),\"\",Classe!C35)","v":""}]
[null,null,"Session :",{"$f":"Classe!F2","v":2014}]
[]
["BAC PRO\n ASSP\nOption A\n\"A domicile\"","Fiche individuelle récapitulative\ndes notes obtenues\naux évaluations en CCF\ndans le domaine professionnel"]
[]
[null,null,"Note obtenue (coefficientée)",null,"Note proposée\nau jury (*)"]
["E1\nEpreuve\nscientifique\net technique","Sous épreuve E 13\nConduite d'un projet d'accompagnement",{"$f":"Classe!D35","v":0},"/ 80",{"$f":"IF(ISERR(C8/4),\"\",CEILING(C8/4,0.5))","v":0},"/ 20"]
["E 3\nEpreuve professionnelle","Sous épreuve E 31\nAccompagnement des actes de la vie quotidienne\nà domicile",{"$f":"Classe!F35","v":0},"/ 80",{"$f":"IF(ISERR(C9/4),\"\",CEILING(C9/4,0.5))","v":0},"/ 20"]
[null,"Sous épreuve E 32\nOrganisation d'interventions\nà domicile",{"$f":"Classe!G35","v":0},"/ 40",{"$f":"IF(ISERR(C10/2),\"\",CEILING(C10/2,0.5))","v":0},"/ 20"]
[null,"Sous épreuve E 33\nAménagement et équipement\nde l'espace privé",{"$f":"Classe!H35","v":0},"/ 40",{"$f":"IF(ISERR(C11/2),\"\",CEILING(C11/2,0.5))","v":0},"/ 20"]
[]
[]
[]
["Cachet de l'établissement",null,{"$f":"\"A \"&Classe!L5","v":"A "}]
[null,null,{"$f":"IF(ISBLANK(Classe!L6),\"Le \",Classe!L6)","v":"Le "}]
[]
[null,null,"Nom et signature du chef d'établissement"]
[]
[]
[]
[]
[]
[]
[]
[null,null,{"$f":"IF(ISBLANK(Classe!L6),\"\",Classe!L6)","v":""}]
[]
[]
["(*)La note proposée est arrondie au demi-point supérieur, elle figurera donc en points entiers ou en ½ points"]
[]
["Remarque : Les notes des évaluations par CCF ne sont jamais communiquées aux candidats ni prises en compte dans les moyennes trimestrielles. Elles sont proposées au jury."]

{"sheet":"EL_26","index":26,"n_rows":31,"n_cols":6,"rows_kept":31,"cut":false,"hidden":false,"merged":[[28,0,28,5],[30,0,30,5],[4,2,4,5],[5,0,5,5],[6,0,6,1],[6,2,6,3],[6,4,6,5],[8,0,10,0],[3,0,3,5],[0,0,2,0],[0,1,2,1],[0,3,0,5],[1,3,1,5],[2,3,2,5]]}
[null,{"$f":"Classe!A3","v":"(Nom et adresse)"},"Nom :",{"$f":"IF(ISBLANK(Classe!B36),\"\",Classe!B36)","v":""}]
[null,null,"Prénom :",{"$f":"IF(ISBLANK(Classe!C36),\"\",Classe!C36)","v":""}]
[null,null,"Session :",{"$f":"Classe!F2","v":2014}]
[]
["BAC PRO\n ASSP\nOption A\n\"A domicile\"","Fiche individuelle récapitulative\ndes notes obtenues\naux évaluations en CCF\ndans le domaine professionnel"]
[]
[null,null,"Note obtenue (coefficientée)",null,"Note proposée\nau jury (*)"]
["E1\nEpreuve\nscientifique\net technique","Sous épreuve E 13\nConduite d'un projet d'accompagnement",{"$f":"Classe!D36","v":0},"/ 80",{"$f":"IF(ISERR(C8/4),\"\",CEILING(C8/4,0.5))","v":0},"/ 20"]
["E 3\nEpreuve professionnelle","Sous épreuve E 31\nAccompagnement des actes de la vie quotidienne\nà domicile",{"$f":"Classe!F36","v":0},"/ 80",{"$f":"IF(ISERR(C9/4),\"\",CEILING(C9/4,0.5))","v":0},"/ 20"]
[null,"Sous épreuve E 32\nOrganisation d'interventions\nà domicile",{"$f":"Classe!G36","v":0},"/ 40",{"$f":"IF(ISERR(C10/2),\"\",CEILING(C10/2,0.5))","v":0},"/ 20"]
[null,"Sous épreuve E 33\nAménagement et équipement\nde l'espace privé",{"$f":"Classe!H36","v":0},"/ 40",{"$f":"IF(ISERR(C11/2),\"\",CEILING(C11/2,0.5))","v":0},"/ 20"]
[]
[]
[]
["Cachet de l'établissement",null,{"$f":"\"A \"&Classe!L5","v":"A "}]
[null,null,{"$f":"IF(ISBLANK(Classe!L6),\"Le \",Classe!L6)","v":"Le "}]
[]
[null,null,"Nom et signature du chef d'établissement"]
[]
[]
[]
[]
[]
[]
[]
[null,null,{"$f":"IF(ISBLANK(Classe!L6),\"\",Classe!L6)","v":""}]
[]
[]
["(*)La note proposée est arrondie au demi-point supérieur, elle figurera donc en points entiers ou en ½ points"]
[]
["Remarque : Les notes des évaluations par CCF ne sont jamais communiquées aux candidats ni prises en compte dans les moyennes trimestrielles. Elles sont proposées au jury."]

{"sheet":"EL_27","index":27,"n_rows":31,"n_cols":6,"rows_kept":31,"cut":false,"hidden":false,"merged":[[28,0,28,5],[30,0,30,5],[4,2,4,5],[5,0,5,5],[6,0,6,1],[6,2,6,3],[6,4,6,5],[8,0,10,0],[3,0,3,5],[0,0,2,0],[0,1,2,1],[0,3,0,5],[1,3,1,5],[2,3,2,5]]}
[null,{"$f":"Classe!A3","v":"(Nom et adresse)"},"Nom :",{"$f":"IF(ISBLANK(Classe!B37),\"\",Classe!B37)","v":""}]
[null,null,"Prénom :",{"$f":"IF(ISBLANK(Classe!C37),\"\",Classe!C37)","v":""}]
[null,null,"Session :",{"$f":"Classe!F2","v":2014}]
[]
["BAC PRO\n ASSP\nOption A\n\"A domicile\"","Fiche individuelle récapitulative\ndes notes obtenues\naux évaluations en CCF\ndans le domaine professionnel"]
[]
[null,null,"Note obtenue (coefficientée)",null,"Note proposée\nau jury (*)"]
["E1\nEpreuve\nscientifique\net technique","Sous épreuve E 13\nConduite d'un projet d'accompagnement",{"$f":"Classe!D37","v":0},"/ 80",{"$f":"IF(ISERR(C8/4),\"\",CEILING(C8/4,0.5))","v":0},"/ 20"]
["E 3\nEpreuve professionnelle","Sous épreuve E 31\nAccompagnement des actes de la vie quotidienne\nà domicile",{"$f":"Classe!F37","v":0},"/ 80",{"$f":"IF(ISERR(C9/4),\"\",CEILING(C9/4,0.5))","v":0},"/ 20"]
[null,"Sous épreuve E 32\nOrganisation d'interventions\nà domicile",{"$f":"Classe!G37","v":0},"/ 40",{"$f":"IF(ISERR(C10/2),\"\",CEILING(C10/2,0.5))","v":0},"/ 20"]
[null,"Sous épreuve E 33\nAménagement et équipement\nde l'espace privé",{"$f":"Classe!H37","v":0},"/ 40",{"$f":"IF(ISERR(C11/2),\"\",CEILING(C11/2,0.5))","v":0},"/ 20"]
[]
[]
[]
["Cachet de l'établissement",null,{"$f":"\"A \"&Classe!L5","v":"A "}]
[null,null,{"$f":"IF(ISBLANK(Classe!L6),\"Le \",Classe!L6)","v":"Le "}]
[]
[null,null,"Nom et signature du chef d'établissement"]
[]
[]
[]
[]
[]
[]
[]
[null,null,{"$f":"IF(ISBLANK(Classe!L6),\"\",Classe!L6)","v":""}]
[]
[]
["(*)La note proposée est arrondie au demi-point supérieur, elle figurera donc en points entiers ou en ½ points"]
[]
["Remarque : Les notes des évaluations par CCF ne sont jamais communiquées aux candidats ni prises en compte dans les moyennes trimestrielles. Elles sont proposées au jury."]

{"sheet":"EL_28","index":28,"n_rows":31,"n_cols":6,"rows_kept":31,"cut":false,"hidden":false,"merged":[[28,0,28,5],[30,0,30,5],[4,2,4,5],[5,0,5,5],[6,0,6,1],[6,2,6,3],[6,4,6,5],[8,0,10,0],[3,0,3,5],[0,0,2,0],[0,1,2,1],[0,3,0,5],[1,3,1,5],[2,3,2,5]]}
[null,{"$f":"Classe!A3","v":"(Nom et adresse)"},"Nom :",{"$f":"IF(ISBLANK(Classe!B38),\"\",Classe!B38)","v":""}]
[null,null,"Prénom :",{"$f":"IF(ISBLANK(Classe!C38),\"\",Classe!C38)","v":""}]
[null,null,"Session :",{"$f":"Classe!F2","v":2014}]
[]
["BAC PRO\n ASSP\nOption A\n\"A domicile\"","Fiche individuelle récapitulative\ndes notes obtenues\naux évaluations en CCF\ndans le domaine professionnel"]
[]
[null,null,"Note obtenue (coefficientée)",null,"Note proposée\nau jury (*)"]
["E1\nEpreuve\nscientifique\net technique","Sous épreuve E 13\nConduite d'un projet d'accompagnement",{"$f":"Classe!D38","v":0},"/ 80",{"$f":"IF(ISERR(C8/4),\"\",CEILING(C8/4,0.5))","v":0},"/ 20"]
["E 3\nEpreuve professionnelle","Sous épreuve E 31\nAccompagnement des actes de la vie quotidienne\nà domicile",{"$f":"Classe!F38","v":0},"/ 80",{"$f":"IF(ISERR(C9/4),\"\",CEILING(C9/4,0.5))","v":0},"/ 20"]
[null,"Sous épreuve E 32\nOrganisation d'interventions\nà domicile",{"$f":"Classe!G38","v":0},"/ 40",{"$f":"IF(ISERR(C10/2),\"\",CEILING(C10/2,0.5))","v":0},"/ 20"]
[null,"Sous épreuve E 33\nAménagement et équipement\nde l'espace privé",{"$f":"Classe!H38","v":0},"/ 40",{"$f":"IF(ISERR(C11/2),\"\",CEILING(C11/2,0.5))","v":0},"/ 20"]
[]
[]
[]
["Cachet de l'établissement",null,{"$f":"\"A \"&Classe!L5","v":"A "}]
[null,null,{"$f":"IF(ISBLANK(Classe!L6),\"Le \",Classe!L6)","v":"Le "}]
[]
[null,null,"Nom et signature du chef d'établissement"]
[]
[]
[]
[]
[]
[]
[]
[null,null,{"$f":"IF(ISBLANK(Classe!L6),\"\",Classe!L6)","v":""}]
[]
[]
["(*)La note proposée est arrondie au demi-point supérieur, elle figurera donc en points entiers ou en ½ points"]
[]
["Remarque : Les notes des évaluations par CCF ne sont jamais communiquées aux candidats ni prises en compte dans les moyennes trimestrielles. Elles sont proposées au jury."]

{"sheet":"EL_29","index":29,"n_rows":31,"n_cols":6,"rows_kept":31,"cut":false,"hidden":false,"merged":[[28,0,28,5],[30,0,30,5],[4,2,4,5],[5,0,5,5],[6,0,6,1],[6,2,6,3],[6,4,6,5],[8,0,10,0],[3,0,3,5],[0,0,2,0],[0,1,2,1],[0,3,0,5],[1,3,1,5],[2,3,2,5]]}
[null,{"$f":"Classe!A3","v":"(Nom et adresse)"},"Nom :",{"$f":"IF(ISBLANK(Classe!B39),\"\",Classe!B39)","v":""}]
[null,null,"Prénom :",{"$f":"IF(ISBLANK(Classe!C39),\"\",Classe!C39)","v":""}]
[null,null,"Session :",{"$f":"Classe!F2","v":2014}]
[]
["BAC PRO\n ASSP\nOption A\n\"A domicile\"","Fiche individuelle récapitulative\ndes notes obtenues\naux évaluations en CCF\ndans le domaine professionnel"]
[]
[null,null,"Note obtenue (coefficientée)",null,"Note proposée\nau jury (*)"]
["E1\nEpreuve\nscientifique\net technique","Sous épreuve E 13\nConduite d'un projet d'accompagnement",{"$f":"Classe!D39","v":0},"/ 80",{"$f":"IF(ISERR(C8/4),\"\",CEILING(C8/4,0.5))","v":0},"/ 20"]
["E 3\nEpreuve professionnelle","Sous épreuve E 31\nAccompagnement des actes de la vie quotidienne\nà domicile",{"$f":"Classe!F39","v":0},"/ 80",{"$f":"IF(ISERR(C9/4),\"\",CEILING(C9/4,0.5))","v":0},"/ 20"]
[null,"Sous épreuve E 32\nOrganisation d'interventions\nà domicile",{"$f":"Classe!G39","v":0},"/ 40",{"$f":"IF(ISERR(C10/2),\"\",CEILING(C10/2,0.5))","v":0},"/ 20"]
[null,"Sous épreuve E 33\nAménagement et équipement\nde l'espace privé",{"$f":"Classe!H39","v":0},"/ 40",{"$f":"IF(ISERR(C11/2),\"\",CEILING(C11/2,0.5))","v":0},"/ 20"]
[]
[]
[]
["Cachet de l'établissement",null,{"$f":"\"A \"&Classe!L5","v":"A "}]
[null,null,{"$f":"IF(ISBLANK(Classe!L6),\"Le \",Classe!L6)","v":"Le "}]
[]
[null,null,"Nom et signature du chef d'établissement"]
[]
[]
[]
[]
[]
[]
[]
[null,null,{"$f":"IF(ISBLANK(Classe!L6),\"\",Classe!L6)","v":""}]
[]
[]
["(*)La note proposée est arrondie au demi-point supérieur, elle figurera donc en points entiers ou en ½ points"]
[]
["Remarque : Les notes des évaluations par CCF ne sont jamais communiquées aux candidats ni prises en compte dans les moyennes trimestrielles. Elles sont proposées au jury."]

{"sheet":"EL_30","index":30,"n_rows":31,"n_cols":6,"rows_kept":31,"cut":false,"hidden":false,"merged":[[28,0,28,5],[30,0,30,5],[4,2,4,5],[5,0,5,5],[6,0,6,1],[6,2,6,3],[6,4,6,5],[8,0,10,0],[3,0,3,5],[0,0,2,0],[0,1,2,1],[0,3,0,5],[1,3,1,5],[2,3,2,5]]}
[null,{"$f":"Classe!A3","v":"(Nom et adresse)"},"Nom :",{"$f":"IF(ISBLANK(Classe!B40),\"\",Classe!B40)","v":""}]
[null,null,"Prénom :",{"$f":"IF(ISBLANK(Classe!C40),\"\",Classe!C40)","v":""}]
[null,null,"Session :",{"$f":"Classe!F2","v":2014}]
[]
["BAC PRO\n ASSP\nOption A\n\"A domicile\"","Fiche individuelle récapitulative\ndes notes obtenues\naux évaluations en CCF\ndans le domaine professionnel"]
[]
[null,null,"Note obtenue (coefficientée)",null,"Note proposée\nau jury (*)"]
["E1\nEpreuve\nscientifique\net technique","Sous épreuve E 13\nConduite d'un projet d'accompagnement",{"$f":"Classe!D40","v":0},"/ 80",{"$f":"IF(ISERR(C8/4),\"\",CEILING(C8/4,0.5))","v":0},"/ 20"]
["E 3\nEpreuve professionnelle","Sous épreuve E 31\nAccompagnement des actes de la vie quotidienne\nà domicile",{"$f":"Classe!F40","v":0},"/ 80",{"$f":"IF(ISERR(C9/4),\"\",CEILING(C9/4,0.5))","v":0},"/ 20"]
[null,"Sous épreuve E 32\nOrganisation d'interventions\nà domicile",{"$f":"Classe!G40","v":0},"/ 40",{"$f":"IF(ISERR(C10/2),\"\",CEILING(C10/2,0.5))","v":0},"/ 20"]
[null,"Sous épreuve E 33\nAménagement et équipement\nde l'espace privé",{"$f":"Classe!H40","v":0},"/ 40",{"$f":"IF(ISERR(C11/2),\"\",CEILING(C11/2,0.5))","v":0},"/ 20"]
[]
[]
[]
["Cachet de l'établissement",null,{"$f":"\"A \"&Classe!L5","v":"A "}]
[null,null,{"$f":"IF(ISBLANK(Classe!L6),\"Le \",Classe!L6)","v":"Le "}]
[]
[null,null,"Nom et signature du chef d'établissement"]
[]
[]
[]
[]
[]
[]
[]
[null,null,{"$f":"IF(ISBLANK(Classe!L6),\"\",Classe!L6)","v":""}]
[]
[]
["(*)La note proposée est arrondie au demi-point supérieur, elle figurera donc en points entiers ou en ½ points"]
[]
["Remarque : Les notes des évaluations par CCF ne sont jamais communiquées aux candidats ni prises en compte dans les moyennes trimestrielles. Elles sont proposées au jury."]